bitfinex/quotes_ETHUSD_20250114
["timestamp","ask_amount","ask_price","bid_price","bid_amount"]
[1736819978301,0.03176993,3143.9,3143.5,0.05829099]
[1736819978936,3.18056,3144.1,3143.5,0.05829099]
[1736819979257,0.149,3144.2,3143.6,0.7909]
[1736819979420,0.149,3144.2,3143.7,0.05604848]
[1736819979831,3.8281,3144.6,3143.7,0.05604848]
[1736819980003,0.149,3144.4,3143.7,0.05604848]
[1736819980405,3.18024,3144.5,3143.8,0.7909]
[1736819980739,3.36102993,3144.4,3143.8,0.7909]
[1736819980940,3.36102993,3144.4,3143.9,0.05604848]
[1736819981138,0.18076993,3144.4,3143.9,0.05604848]
[1736819981454,3.18053,3144.2,3143.8,0.7909]
[1736819981607,0.03176993,3144.1,3143.8,0.7909]
[1736819982412,0.33612999,3144.2,3143.8,0.7909]
[1736819982737,3.32927,3144.4,3143.8,0.7909]
[1736819982905,0.149,3144.4,3143.8,0.7909]
[1736819983830,3.18007,3144.6,3143.8,0.7909]
[1736819984016,3.32907,3144.6,3143.8,0.7909]
[1736819984219,4.0,3144.7,3143.9,0.03180694]
[1736819984536,4.03176993,3144.7,3144.0,0.05504784]
[1736819984704,4.0,3144.7,3144.1,0.7909]
[1736819984907,3.17985,3144.8,3144.1,0.7909]
[1736819985103,0.149,3144.9,3144.1,0.7909]
[1736819985443,0.149,3144.9,3144.2,0.05504784]
[1736819985653,0.149,3144.9,3144.3,0.7909]
[1736819986156,3.23181248,3145.1,3144.4,0.05504784]
[1736819986307,4.0,3145.2,3144.6,0.7909]
[1736819986506,4.03176993,3145.2,3144.6,0.7909]
[1736819986739,4.03176993,3145.2,3144.7,0.05480844]
[1736819986923,0.03176993,3145.2,3144.6,0.7909]
[1736819987129,3.21121993,3145.2,3144.8,0.05480844]
[1736819987333,3.21121993,3145.2,3144.6,0.7909]
[1736819987528,3.17955,3145.1,3144.6,0.7909]
[1736819987842,0.03176993,3145.0,3144.7,0.05458618]
[1736819988743,3.17955,3145.1,3144.7,0.05458618]
[1736819989442,0.03176993,3145.0,3144.6,0.7909]
[1736819989638,3.21141993,3145.0,3144.6,0.7909]
[1736819989844,3.21141993,3145.0,3144.7,0.05438959]
[1736819990543,3.17946,3145.2,3144.7,0.05438959]
[1736819990772,0.03176993,3145.1,3144.7,0.05438959]
[1736819993204,3.17956,3145.1,3144.7,0.05438959]
[1736819993404,0.03176993,3145.0,3144.7,0.05438959]
[1736819993846,0.35290292,3145.0,3144.7,0.05438959]
[1736819994015,3.18015,3144.5,3144.4,0.05815327]
[1736819994214,0.03176993,3144.7,3144.1,0.7909]
[1736819994420,3.18025,3144.4,3144.1,0.7909]
[1736819994721,0.03176993,3144.3,3144.1,0.7909]
[1736819995758,3.08281248,3144.2,3143.0,0.7909]
[1736819995911,3.18072,3144.0,3143.1,0.7909]
[1736819996252,3.32947,3144.2,3143.2,0.7909]
[1736819996406,3.21236993,3144.1,3143.2,0.7909]
[1736819996613,3.1806,3144.1,3143.2,0.82271058]
[1736819996813,3.1806,3144.1,3143.3,0.38227106]
[1736819997247,3.1806,3144.1,3143.4,0.7909]
[1736819997835,3.18068,3144.0,3143.4,0.7909]
[1736819998517,0.03176993,3143.9,3143.4,0.7909]
[1736819999528,3.18068,3144.0,3143.4,0.7909]
[1736820000255,3.87438241,3143.9,3143.4,0.7909]
[1736820000553,3.84261248,3143.9,3143.0,0.8148]
[1736820000855,3.18079,3143.9,3143.0,0.8148]
[1736820001027,3.0,3144.1,3143.2,0.8148]
[1736820001230,4.0,3144.2,3143.3,0.03181167]
[1736820001420,4.0,3144.2,3143.4,3.23943177]
[1736820001759,4.0,3144.2,3143.6,0.8148]
[1736820001964,3.32909,3144.6,3143.7,0.03180674]
[1736820002153,3.32909,3144.6,3143.8,0.8148]
[1736820002154,0.149,3144.6,3143.8,0.8148]
[1736820002321,0.149,3144.6,3143.9,0.8148]
[1736820002724,7.17968,3145.0,3144.1,0.8148]
[1736820003058,3.32868,3145.0,3144.3,0.8148]
[1736820003445,0.03176993,3144.9,3144.3,0.8148]
[1736820003854,3.21151993,3144.9,3144.3,0.8148]
[1736820006461,0.149,3145.0,3144.5,0.8148]
[1736820008356,3.17949,3145.2,3144.5,0.8148]
[1736820009371,3.21135993,3145.1,3144.5,0.8148]
[1736820009580,0.03176993,3145.1,3144.5,0.8148]
[1736820009779,3.17935,3145.3,3144.5,0.8148]
[1736820012077,0.03176993,3145.2,3144.5,0.8148]
[1736820012480,3.17935,3145.3,3144.5,0.8148]
[1736820012784,4.0,3145.6,3144.9,3.08281248]
[1736820012950,3.17877,3145.9,3145.1,0.8148]
[1736820013570,0.7598,3146.2,3145.2,0.03179171]
[1736820013571,3.17851,3146.2,3145.2,0.03179171]
[1736820013773,3.17825,3146.4,3145.3,0.755]
[1736820014075,3.32725,3146.4,3145.5,0.755]
[1736820014276,3.32725,3146.4,3145.6,0.755]
[1736820014982,7.08281248,3146.7,3145.6,0.755]
[1736820014983,6.26083248,3146.7,3145.6,0.755]
[1736820015169,4.0,3146.8,3145.8,0.0225]
[1736820015479,4.0,3146.8,3146.1,0.755]
[1736820015655,4.0,3146.8,3146.1,0.81312184]
[1736820015854,0.03176993,3147.0,3146.1,0.81312184]
[1736820016279,0.03176993,3147.2,3146.3,0.755]
[1736820016482,0.03176993,3147.2,3146.2,0.06561999]
[1736820016483,4.0,3147.4,3146.5,0.755]
[1736820016687,4.0,3147.4,3146.6,0.43408628]
[1736820016983,0.149,3147.8,3146.8,0.755]
[1736820017150,3.32586,3147.8,3146.8,0.78677301]
[1736820017351,0.03176993,3147.7,3146.8,0.755]
[1736820017576,3.17703,3147.6,3146.9,0.05082471]
[1736820017882,3.17712,3147.5,3146.9,0.05082471]
[1736820018077,3.494832,3147.5,3146.9,0.05082471]
[1736820018448,3.20898993,3147.4,3146.9,0.05082471]
[1736820018757,0.03176993,3147.4,3146.8,0.755]
[1736820018956,0.03176993,3147.4,3147.0,0.04932992]
[1736820019175,3.17754,3147.1,3146.9,0.04768559]
[1736820019350,3.20942993,3147.0,3146.7,0.05811076]
[1736820019751,3.17773,3146.9,3146.7,0.05811076]
[1736820019979,3.08281248,3147.2,3146.7,0.05811076]
[1736820020185,3.20936993,3147.1,3146.7,0.05811076]
[1736820021049,3.1776,3147.1,3146.7,0.05811076]
[1736820021447,3.17828,3146.4,3146.2,0.755]
[1736820021749,0.03176993,3146.3,3145.8,0.755]
[1736820021974,3.08281248,3146.5,3145.8,0.755]
[1736820022188,3.17825,3146.4,3145.8,0.755]
[1736820022484,7.08281248,3147.1,3146.0,0.755]
[1736820022686,4.0,3147.1,3146.1,0.03178083]
[1736820022982,3.08281248,3147.4,3146.4,0.755]
[1736820022983,3.17731,3147.4,3146.4,0.755]
[1736820023163,3.17731,3147.4,3146.4,0.84489235]
[1736820023559,3.17702,3147.6,3146.5,0.755]
[1736820023762,3.17683,3147.8,3146.7,0.755]
[1736820024080,3.17683,3147.8,3146.9,0.755]
[1736820024384,0.03176993,3147.7,3146.9,0.81310707]
[1736820024686,3.17722,3147.5,3146.9,0.81310707]
[1736820025564,0.03176993,3147.4,3146.9,0.81310707]
[1736820026293,3.11458241,3147.4,3146.9,0.81310707]
[1736820026455,3.17762,3147.0,3146.9,0.05810707]
[1736820026966,3.20938993,3147.0,3146.9,0.05810707]
[1736820027476,3.20938993,3147.0,3146.3,0.755]
[1736820027652,3.20938993,3147.0,3146.4,0.04371993]
[1736820027855,3.20938993,3147.0,3146.3,0.755]
[1736820028084,3.17762,3147.0,3146.4,0.04371993]
[1736820028317,0.03176993,3146.9,3146.4,0.04371993]
[1736820028672,0.31145824,3147.3,3146.4,0.03178123]
[1736820028997,3.149,3147.8,3146.5,0.85510162]
[1736820028998,0.149,3147.5,3146.5,0.85510162]
[1736820029194,7.17691,3147.8,3146.7,0.8111]
[1736820029483,7.17691,3147.8,3146.9,0.8111]
[1736820029661,7.17691,3147.8,3147.0,0.07571471]
[1736820029867,3.17714,3147.5,3147.0,0.04394186]
[1736820030052,0.03176993,3147.4,3147.0,0.04394186]
[1736820032270,3.17714,3147.5,3147.0,0.04394186]
[1736820033606,3.17692,3147.7,3147.0,0.04394186]
[1736820033904,3.17692,3147.7,3147.1,0.7964]
[1736820034070,3.17692,3147.7,3147.1,0.83990655]
[1736820034477,3.23181248,3148.0,3147.1,0.83990655]
[1736820034682,3.17674,3147.9,3147.1,0.7964]
[1736820035494,3.17674,3147.9,3147.2,0.03177285]
[1736820035697,3.17674,3147.9,3147.3,0.04350655]
[1736820036771,3.17674,3147.9,3147.2,0.03177041]
[1736820037379,3.17674,3147.9,3147.3,0.04350655]
[1736820037583,3.17704,3147.6,3147.1,0.7964]
[1736820037908,3.08281248,3147.4,3147.2,0.04350655]
[1736820038112,0.03176993,3147.3,3147.2,0.04350655]
[1736820040674,3.17705,3147.6,3147.2,0.04350655]
[1736820041313,3.20888993,3147.5,3147.2,0.04350655]
[1736820044211,0.03176993,3147.5,3147.2,0.04350655]
[1736820044411,6.25976248,3147.7,3147.2,0.04350655]
[1736820044614,0.03176993,3147.6,3147.2,0.04350655]
[1736820044777,6.94982425,3147.7,3147.2,0.04350655]
[1736820046191,3.17695,3147.7,3147.2,0.04350655]
[1736820046392,3.17702,3147.6,3147.2,0.04350655]
[1736820046576,3.20891993,3147.5,3147.2,0.04350655]
[1736820049425,3.32573,3147.9,3147.2,0.04350655]
[1736820049598,3.32573,3147.9,3147.3,0.7964]
[1736820049806,3.32573,3147.9,3147.4,0.04353215]
[1736820050132,0.149,3147.9,3147.4,0.04353215]
[1736820050509,3.32554,3148.1,3147.4,0.04353215]
[1736820051110,3.17654,3148.1,3147.4,0.04353215]
[1736820051310,3.32554,3148.1,3147.4,0.04353215]
[1736820053501,3.17665,3148.0,3147.4,0.04353215]
[1736820053842,0.03176993,3147.9,3147.4,0.04353215]
[1736820054049,3.17691,3147.8,3147.3,0.7964]
[1736820054244,0.03176993,3147.7,3147.4,0.04353215]
[1736820054403,3.17693,3147.7,3147.3,0.7964]
[1736820054616,0.03176993,3147.6,3147.4,0.04353215]
[1736820054814,0.03176993,3147.6,3147.3,0.7964]
[1736820054815,3.20881993,3147.6,3147.3,0.7964]
[1736820056572,3.95369,3147.5,3146.7,0.7899]
[1736820056716,0.03176993,3147.4,3146.7,0.7899]
[1736820057049,3.17764,3147.0,3146.8,0.04353215]
[1736820057258,0.03176993,3146.9,3146.7,0.7899]
[1736820057470,3.17773,3146.9,3146.7,0.7899]
[1736820057619,0.03176993,3146.8,3146.7,0.7899]
[1736820057818,3.20959993,3146.8,3146.1,0.7899]
[1736820058014,3.53055992,3146.8,3146.7,0.0429518]
[1736820058256,3.53055992,3146.8,3146.1,0.7899]
[1736820058257,3.49878999,3146.8,3146.1,0.7899]
[1736820058434,3.17783,3146.8,3146.7,0.04353213]
[1736820058651,3.17783,3146.8,3146.1,0.7899]
[1736820058996,3.17783,3146.8,3146.7,0.04353213]
[1736820059274,0.03176993,3147.1,3146.7,0.04353213]
[1736820059275,7.17724,3147.4,3146.7,0.8275]
[1736820059639,3.17746,3147.2,3146.8,0.04353213]
[1736820059836,0.03176993,3147.1,3146.7,0.8275]
[1736820060147,3.17754,3147.1,3146.7,0.8275]
[1736820060354,0.03176993,3147.0,3146.7,0.8275]
[1736820060718,3.17733,3147.3,3146.7,0.8275]
[1736820060918,3.17733,3147.3,3146.8,0.04353213]
[1736820061149,3.20921993,3147.2,3146.8,0.04353213]
[1736820061352,3.20921993,3147.2,3146.7,0.8275]
[1736820061514,3.17753,3147.1,3146.7,0.8275]
[1736820061880,0.03176993,3147.0,3146.8,0.04353213]
[1736820062023,0.03176993,3147.0,3145.8,3.0]
[1736820062222,3.17796,3146.7,3145.9,0.88562554]
[1736820062531,3.20988993,3146.6,3145.9,0.88562554]
[1736820063020,3.17812,3146.6,3145.9,0.88562554]
[1736820063421,0.03176993,3146.5,3146.0,0.04353213]
[1736820064054,3.17824,3146.4,3146.0,0.04353213]
[1736820064234,0.03176993,3146.3,3146.0,0.04353213]
[1736820065121,0.03176993,3146.5,3146.0,0.04353213]
[1736820066159,0.149,3147.0,3146.1,0.8275]
[1736820066325,3.32664,3147.0,3146.1,0.85928403]
[1736820066654,3.32664,3147.0,3146.4,0.8275]
[1736820067061,0.149,3147.3,3146.5,0.03177955]
[1736820067357,3.32603,3147.6,3146.6,0.85927769]
[1736820067666,0.149,3147.6,3146.7,0.92940751]
[1736820067836,0.791,3148.0,3146.9,0.8275]
[1736820068019,0.03176993,3147.9,3147.0,0.05810522]
[1736820068221,0.03176993,3147.9,3147.1,0.04378821]
[1736820068645,3.17682,3147.8,3147.1,0.04378821]
[1736820068852,0.03176993,3147.7,3147.1,0.04378821]
[1736820069053,3.17697,3147.7,3147.1,0.04378821]
[1736820069362,0.03176993,3147.6,3147.1,0.04378821]
[1736820070353,3.17675,3147.9,3147.1,0.04378821]
[1736820071366,3.32555,3148.1,3147.2,0.85927255]
[1736820071571,3.17662,3148.0,3147.2,0.85927255]
[1736820071861,3.17662,3148.0,3147.3,0.04272993]
[1736820073843,0.03176993,3147.9,3147.3,0.04272993]
[1736820074658,0.7794,3147.8,3147.3,0.04272993]
[1736820074966,3.20870993,3147.7,3147.2,0.8275]
[1736820075467,3.20870993,3147.7,3147.3,0.04272993]
[1736820075667,3.20870993,3147.7,3147.2,0.8275]
[1736820075868,3.20870993,3147.7,3147.4,0.04272993]
[1736820076057,3.20870993,3147.7,3147.2,0.8275]
[1736820076259,3.17712,3147.5,3147.2,0.8275]
[1736820076460,3.20899993,3147.4,3147.2,0.8275]
[1736820076982,3.17705,3147.6,3147.1,0.05810337]
[1736820077346,3.17681,3147.9,3147.1,0.05810337]
[1736820077708,3.17681,3147.9,3147.2,0.7987]
[1736820078060,3.17682,3147.8,3147.2,0.7987]
[1736820078453,3.17682,3147.8,3147.3,0.04273847]
[1736820078654,3.17682,3147.8,3147.2,0.7987]
[1736820078876,3.17682,3147.8,3147.4,0.04273847]
[1736820079079,3.17682,3147.8,3147.2,0.7987]
[1736820079256,3.17682,3147.8,3147.5,0.04273847]
[1736820079750,3.17682,3147.8,3147.2,0.7987]
[1736820080165,3.17682,3147.8,3147.3,0.04273847]
[1736820080568,3.17682,3147.8,3147.2,0.7987]
[1736820080774,3.17682,3147.8,3147.4,0.04273847]
[1736820081175,3.17682,3147.8,3147.2,0.7987]
[1736820081549,3.17682,3147.8,3147.3,0.04273847]
[1736820081882,3.17682,3147.8,3147.2,0.7987]
[1736820082046,3.17682,3147.8,3147.4,0.04273847]
[1736820082377,3.17682,3147.8,3147.2,0.7987]
[1736820082778,3.17682,3147.8,3147.3,0.04273847]
[1736820083197,3.17682,3147.8,3147.2,0.7987]
[1736820083358,3.17682,3147.8,3147.4,0.04273847]
[1736820083560,3.17682,3147.8,3147.2,0.7987]
[1736820083882,3.17682,3147.8,3147.3,0.04273847]
[1736820084047,3.17682,3147.8,3147.2,0.7987]
[1736820084247,3.17682,3147.8,3147.4,0.04273847]
[1736820084543,3.17682,3147.8,3147.2,0.7987]
[1736820084783,3.17682,3147.8,3147.5,0.04273847]
[1736820085093,3.17682,3147.8,3147.2,0.7987]
[1736820085293,3.17682,3147.8,3147.6,0.04273847]
[1736820085514,3.17682,3147.8,3147.2,0.7987]
[1736820085687,3.17682,3147.8,3147.7,0.04273847]
[1736820085860,3.17682,3147.8,3147.2,0.7987]
[1736820086061,3.17682,3147.8,3147.7,0.04273847]
[1736820086262,3.17682,3147.8,3147.2,0.7987]
[1736820086663,3.17682,3147.8,3147.3,0.042619]
[1736820086863,3.17682,3147.8,3147.2,0.7987]
[1736820087096,3.17682,3147.8,3147.4,0.042619]
[1736820087292,3.17665,3148.0,3147.2,0.7987]
[1736820087494,0.9284,3148.4,3147.5,0.042619]
[1736820087697,0.9284,3148.4,3147.6,0.7987]
[1736820088002,3.1765,3148.2,3147.6,0.841319]
[1736820088398,0.03176993,3148.1,3147.6,0.841319]
[1736820088603,3.17692,3147.7,3147.6,0.042619]
[1736820088895,0.317692,3147.7,3147.2,0.05810153]
[1736820089096,0.8325,3147.9,3146.4,0.7559]
[1736820089097,3.17732,3147.3,3146.4,0.7559]
[1736820089264,0.03176993,3147.2,3146.4,0.7559]
[1736820089687,3.17778,3146.9,3146.4,0.7559]
[1736820089876,0.03176993,3146.8,3146.4,0.7559]
[1736820090177,0.03176993,3147.0,3146.4,0.7559]
[1736820090398,3.20941993,3147.0,3146.4,0.7559]
[1736820091018,0.03176993,3147.0,3146.4,0.7559]
[1736820091189,3.17773,3146.9,3146.4,0.7559]
[1736820091502,0.03176993,3146.8,3146.4,0.7559]
[1736820092109,4.01004,3147.1,3146.4,0.7559]
[1736820092110,0.03176993,3147.0,3146.4,0.7559]
[1736820092527,0.149,3147.3,3146.4,1.32112508]
[1736820092831,0.149,3147.3,3146.5,0.7559]
[1736820093117,3.17744,3147.2,3146.5,0.7559]
[1736820093410,0.149,3147.6,3146.5,0.7559]
[1736820093411,3.17722,3147.5,3146.5,0.7559]
[1736820093577,3.17722,3147.5,3146.6,0.79535911]
[1736820094089,3.17723,3147.4,3146.6,0.79535911]
[1736820094289,3.17702,3147.7,3146.7,0.03177774]
[1736820094510,3.17702,3147.7,3146.8,0.7559]
[1736820094702,0.03176993,3147.6,3147.0,0.7559]
[1736820095206,3.20879993,3147.6,3147.0,0.7559]
[1736820095383,3.20879993,3147.6,3147.1,0.03945911]
[1736820095589,4.00966,3147.5,3147.1,0.03945911]
[1736820095914,3.20902993,3147.4,3147.1,0.03945911]
[1736820096503,3.17735,3147.3,3147.1,0.03945911]
[1736820096704,0.03176993,3147.2,3146.8,0.05810891]
[1736820096913,3.17762,3147.1,3146.8,0.05810891]
[1736820097099,0.03176993,3147.0,3146.8,0.05810891]
[1736820097300,0.8325,3147.5,3146.8,0.05810891]
[1736820097605,3.17733,3147.3,3146.8,0.05810891]
[1736820098575,4.00964,3147.5,3146.8,0.05810891]
[1736820098810,3.17714,3147.5,3146.8,0.05810891]
[1736820099215,3.17714,3147.5,3146.9,0.7559]
[1736820099390,0.03176993,3147.4,3146.9,0.7559]
[1736820099587,3.17744,3147.2,3146.9,0.7559]
[1736820099801,0.03176993,3147.1,3146.9,0.7559]
[1736820100387,3.20933993,3147.1,3146.8,0.05810891]
[1736820101028,3.17773,3146.9,3146.8,0.05810891]
[1736820105684,4.0,3147.5,3146.9,0.7559]
[1736820105685,8.00971,3147.5,3146.9,0.7559]
[1736820105919,3.17721,3147.5,3146.9,0.7559]
[1736820106851,4.8325,3148.0,3146.9,0.7559]
[1736820107055,3.17691,3147.8,3146.9,0.7559]
[1736820107731,3.17662,3148.0,3147.0,3.9652732]
[1736820108026,3.17627,3148.4,3147.3,0.7559]
[1736820108027,3.17633,3148.3,3147.3,0.7559]
[1736820108228,3.17633,3148.3,3147.3,0.78766928]
[1736820108609,3.17633,3148.3,3147.4,0.04031195]
[1736820109220,3.17646,3148.2,3147.4,0.04031195]
[1736820109933,0.03176993,3148.1,3147.4,0.43767415]
[1736820110110,3.17672,3147.9,3147.4,0.04031195]
[1736820110311,0.03176993,3147.8,3147.4,0.04031195]
[1736820110505,0.03176993,3148.0,3147.4,0.04031195]
[1736820111120,3.17681,3147.9,3147.4,0.04031195]
[1736820111312,3.17693,3147.7,3147.4,0.04031195]
[1736820111514,3.17693,3147.7,3147.3,0.7559]
[1736820111833,0.03176993,3147.6,3147.3,0.7559]
[1736820112000,3.17693,3147.7,3147.4,0.04031195]
[1736820112436,0.03176993,3147.6,3147.3,0.7559]
[1736820112623,3.17693,3147.7,3147.3,0.7559]
[1736820112944,0.03176993,3147.6,3147.4,0.04031195]
[1736820113126,3.17693,3147.7,3147.4,0.04031195]
[1736820113438,0.9805,3148.0,3147.3,0.7559]
[1736820113798,0.9805,3148.0,3147.4,0.03964671]
[1736820114039,0.03176993,3147.9,3147.4,0.03964671]
[1736820114239,0.03176993,3147.9,3147.3,0.7559]
[1736820114446,0.9805,3148.0,3147.3,0.7559]
[1736820114736,3.17683,3147.8,3147.4,0.03963818]
[1736820115126,3.17683,3147.8,3147.3,0.7559]
[1736820115328,3.65568994,3147.8,3147.5,0.03963818]
[1736820115635,3.65568994,3147.8,3147.3,0.7559]
[1736820116141,3.65568994,3147.8,3147.4,0.03963818]
[1736820116514,3.65568994,3147.8,3147.3,0.7559]
[1736820116840,0.03176993,3147.7,3147.5,0.03963818]
[1736820117028,0.03176993,3147.7,3147.3,0.7559]
[1736820117341,0.03176993,3147.7,3147.4,0.03963818]
[1736820117499,3.17712,3147.5,3147.1,0.81400337]
[1736820117858,0.55,3147.9,3147.1,0.81400337]
[1736820118062,0.148,3148.0,3147.1,0.81400337]
[1736820118205,0.148,3148.0,3147.3,0.8185]
[1736820120033,0.03176993,3147.9,3147.3,0.8185]
[1736820120443,0.7739,3147.8,3147.1,0.05810337]
[1736820120738,3.17742,3147.2,3147.1,0.05810337]
[1736820120949,3.20918993,3147.2,3147.1,0.05810337]
[1736820121115,3.60749892,3147.2,3147.1,0.05810337]
[1736820121308,0.43007892,3147.2,3146.6,0.8185]
[1736820121509,3.17775,3146.9,3146.6,0.8185]
[1736820121843,3.17793,3146.7,3146.6,0.8185]
[1736820122002,3.17793,3146.7,3146.3,5.71485075]
[1736820122209,3.17823,3146.4,3146.3,4.89635075]
[1736820123108,0.03176993,3146.6,3144.7,5.17993]
[1736820123109,0.03176993,3146.6,3144.8,9.68028711]
[1736820123314,3.17881,3145.9,3144.9,8.83]
[1736820123509,0.03176993,3145.8,3145.0,0.05814217]
[1736820123920,0.03176993,3145.8,3145.0,3.05814217]
[1736820124124,0.03176993,3145.8,3145.1,0.03554565]
[1736820124125,3.17885,3145.8,3145.1,0.03554565]
[1736820124329,0.03176993,3145.7,3145.1,0.09368597]
[1736820124955,3.17919,3145.5,3145.1,0.09368597]
[1736820125247,3.17944,3145.2,3145.1,0.09368597]
[1736820125549,3.21120993,3145.2,3145.1,0.05814032]
[1736820125747,3.17885,3145.8,3145.2,0.8185]
[1736820125948,0.148,3146.1,3145.3,0.03179242]
[1736820126198,0.148,3146.1,3145.2,0.8185]
[1736820126317,3.17894,3145.7,3145.4,0.03582038]
[1736820126647,0.03176993,3145.6,3145.2,0.8185]
[1736820126859,0.03176993,3145.6,3145.5,0.03582038]
[1736820127015,0.03176993,3145.6,3145.2,0.8185]
[1736820127212,3.21080993,3145.6,3145.5,0.03582038]
[1736820127550,0.03176993,3145.6,3145.5,0.03582038]
[1736820127747,3.17885,3145.8,3145.2,0.8185]
[1736820128045,3.17885,3145.8,3145.5,0.03582038]
[1736820128046,3.21073993,3145.7,3145.5,0.03582038]
[1736820128248,3.21073993,3145.7,3145.2,0.8185]
[1736820128249,3.17916,3145.5,3145.2,0.8185]
[1736820128415,0.03176993,3145.4,3145.2,0.8185]
[1736820128611,0.03176993,3145.4,3145.1,0.05814032]
[1736820128849,3.17942,3145.3,3145.1,0.05814032]
[1736820129055,3.21120993,3145.2,3145.1,0.05814032]
[1736820129847,3.17954,3145.1,3144.0,0.8185]
[1736820130072,3.17994,3144.8,3144.0,0.8185]
[1736820130275,0.03176993,3144.7,3144.0,0.8185]
[1736820131140,3.18017,3144.5,3144.0,0.8185]
[1736820131327,3.17995,3144.8,3144.0,0.8185]
[1736820131533,0.03176993,3144.7,3144.0,0.8185]
[1736820132432,3.21174993,3144.7,3144.0,0.8185]
[1736820132664,3.17998,3144.7,3144.0,0.8185]
[1736820132865,0.03176993,3144.6,3144.0,0.8185]
[1736820133647,0.36774492,3144.6,3144.0,0.8185]
[1736820133862,3.18025,3144.5,3144.0,0.8185]
[1736820134169,0.03176993,3144.4,3144.0,0.8185]
[1736820134933,4.0,3145.2,3144.2,3.18045]
[1736820135167,4.0,3145.2,3144.4,0.7703]
[1736820135342,0.03176993,3145.1,3144.5,0.55]
[1736820135556,0.43494692,3145.1,3144.5,0.58670798]
[1736820136036,4.0,3145.7,3144.8,3.5575]
[1736820136348,0.03176993,3145.6,3144.9,0.05814402]
[1736820136551,0.03176993,3145.6,3144.9,0.094852]
[1736820136552,0.7712,3145.4,3144.9,0.094852]
[1736820136746,3.17961,3145.1,3144.9,0.094852]
[1736820136936,0.03176993,3145.0,3144.9,0.094852]
[1736820137139,0.17976993,3145.4,3145.0,0.7703]
[1736820137875,0.17976993,3145.4,3145.1,0.03670798]
[1736820138303,0.148,3145.4,3145.1,0.03670798]
[1736820138738,3.32685,3145.8,3145.2,0.55]
[1736820139186,0.148,3145.8,3145.1,0.58179315]
[1736820139401,3.17866,3146.0,3145.4,0.55]
[1736820139678,3.21055993,3145.9,3145.5,0.03670798]
[1736820139877,3.21056993,3145.9,3145.5,0.03670798]
[1736820140089,0.32105699,3145.8,3145.0,0.7703]
[1736820140291,0.7712,3145.6,3145.1,0.03670798]
[1736820140446,3.17927,3145.4,3144.9,0.05814402]
[1736820140646,0.03176993,3145.3,3144.9,0.05814402]
[1736820140844,0.03176993,3145.3,3145.0,0.03670798]
[1736820141283,3.17954,3145.1,3145.0,0.03670798]
[1736820141484,3.21112993,3145.3,3145.0,0.03670798]
[1736820141774,0.03176993,3145.3,3145.0,0.03670798]
[1736820141940,3.17954,3145.1,3145.0,0.03670798]
[1736820142356,3.52926393,3145.1,3145.0,0.03670798]
[1736820142580,3.497494,3145.1,3144.5,0.7703]
[1736820142742,3.21142993,3145.0,3144.5,0.7703]
[1736820142942,3.21142993,3145.0,3144.6,0.03670798]
[1736820143555,3.17966,3145.0,3144.6,0.03670798]
[1736820144081,0.03176993,3144.9,3144.6,0.03670798]
[1736820144454,3.17966,3145.0,3144.6,0.03670798]
[1736820145745,0.03176993,3144.9,3144.6,0.03670798]
[1736820147343,0.35291292,3144.9,3144.6,0.03670798]
[1736820147549,0.03176993,3144.9,3144.6,0.03670798]
[1736820147769,0.148,3145.1,3144.3,0.58180227]
[1736820147770,3.17957,3145.1,3144.3,0.58180227]
[1736820148084,0.03176993,3145.3,3144.6,0.7703]
[1736820148482,0.148,3145.6,3144.8,0.55]
[1736820148647,4.0,3145.8,3145.1,0.8309]
[1736820148845,3.17831,3146.4,3145.3,0.55]
[1736820148846,0.148,3146.3,3145.3,0.55]
[1736820149105,0.148,3146.3,3145.4,0.8309]
[1736820149255,3.17852,3146.2,3145.4,0.86941643]
[1736820149458,0.148,3146.3,3145.5,0.58178882]
[1736820149660,0.148,3146.3,3145.7,0.55]
[1736820149661,0.17976993,3146.3,3145.7,0.55]
[1736820149984,0.17976993,3146.3,3145.8,0.03851643]
[1736820150295,3.32636,3146.3,3145.6,0.8309]
[1736820150496,0.03176993,3146.2,3145.6,1.21980329]
[1736820150653,3.32636,3146.3,3145.7,0.03851643]
[1736820150850,0.148,3146.5,3145.9,0.8309]
[1736820151060,0.148,3146.5,3146.0,0.55]
[1736820151265,0.148,3146.5,3146.1,0.03851643]
[1736820152682,3.20979993,3146.6,3146.1,0.03851643]
[1736820153359,0.03176993,3146.6,3146.1,0.03851643]
[1736820153564,3.32584,3146.8,3146.1,0.03851643]
[1736820153761,0.03176993,3146.7,3146.1,0.03851643]
[1736820153987,3.20970993,3146.7,3146.1,0.03851643]
[1736820154191,3.17805,3146.6,3146.1,0.03851643]
[1736820154387,0.03176993,3146.5,3146.1,0.03851643]
[1736820154782,3.17805,3146.6,3146.1,0.03851643]
[1736820155691,0.03176993,3147.0,3146.1,0.03851643]
[1736820155860,0.17976993,3146.9,3146.1,0.03851643]
[1736820156059,0.51551592,3146.9,3146.1,0.03851643]
[1736820156262,3.17822,3146.5,3145.6,0.8118]
[1736820156456,3.17864,3146.0,3145.7,0.03682673]
[1736820156799,3.17884,3145.8,3145.7,0.03682673]
[1736820157165,3.17884,3145.8,3145.3,0.8118]
[1736820157378,0.03176993,3145.7,3145.3,0.8118]
[1736820157693,0.03176993,3145.7,3145.6,0.03635751]
[1736820157868,0.03176993,3145.7,3145.3,0.8118]
[1736820158071,0.03176993,3145.7,3145.6,0.03635751]
[1736820158391,3.17904,3145.6,3145.0,0.8118]
[1736820158599,3.17927,3145.4,3145.0,0.8118]
[1736820158824,0.03176993,3145.3,3144.6,0.8118]
[1736820159094,3.17974,3145.0,3144.6,0.8118]
[1736820159663,0.03176993,3144.9,3144.6,0.8118]
[1736820160275,3.17927,3145.4,3144.6,0.8118]
[1736820160482,0.03176993,3145.3,3144.6,0.8118]
[1736820160697,0.03176993,3145.5,3144.6,0.8118]
[1736820160876,3.17944,3145.3,3144.6,0.8118]
[1736820161076,3.17957,3145.1,3144.6,0.8118]
[1736820161286,0.03176993,3145.0,3144.6,0.8118]